{"text_format":"1","workbook":"xlsx","n_sheets":14,"sheets":["Schedule Summary","Session View","IME Session View","Scheduler Admin","Executive Members","Industry Experts","Scheduling Matrix","Schedule History","IMESessionViewData","SessionViewData","ActiveSessions","IMESelectData","ESMScheduleIME","SessionView Data"],"not_rendered":{"charts":0,"images":19,"macros":1,"external_links":0,"defined_names":7,"comments":0,"pivot_tables":3},"unopened":[],"bounds":{"document_bytes":16777216,"sheet_cells":100000,"rows_first":2000,"rows_last":500,"rows_between":2000,"halvings":0,"cell_chars":16384,"cell_head_chars":4096},"cells_cut":0,"cells_raw":0,"read":"whole","date_system":"1900"}

{"sheet":"Schedule Summary","index":0,"n_rows":16,"n_cols":11,"rows_kept":16,"cut":false,"hidden":false,"merged":[]}
[]
[]
[]
[]
[]
[]
[]
[]
[]
[]
[]
[]
[]
[null,"Executive Series Member","Session Number","Apr '24 - Thu 13","May '23 - Thu 11","Jun '23 - Thu 08","Jul '23 - Thu 13","Aug '23 - Thu 10","Sep '23 - Thu 14","Oct '23 - Thu 12","Nov '23 - Thu 09"]
[null,"Insert Company Name",1]
[null,"Insert Company Name",2]

{"sheet":"Session View","index":1,"n_rows":26,"n_cols":18,"rows_kept":26,"cut":false,"hidden":false,"merged":[[12,1,12,11]]}
[]
[null,null,null,null,null,null,null,null,null,null,null,null,null,null,"Session","Apr '23"]
[]
[null,null,null,null,null,null,null,null,null,null,null,null,null,null,"Number of Schedules",null,"Session Number"]
[null,null,null,null,null,null,null,null,null,null,null,null,null,null,"IME","IME Type",1,2]
[null,null,null,null,null,null,null,null,null,null,null,null,null,null,"Dais","Brand Strategy",1,1]
[null,null,null,null,null,null,null,null,null,null,null,null,null,null,"InterFinancial","Merger, Acquisition & Exit",1,1]
[null,null,null,null,null,null,null,null,null,null,null,null,null,null,"Mullins Lawyers","Legal & Intellectual Property",1,1]
[null,null,null,null,null,null,null,null,null,null,null,null,null,null,"QUT","Leadership & Education",1,1]
[null,null,null,null,null,null,null,null,null,null,null,null,null,null,"Salesmasters International","Sales Strategy",1,1]
[null,null,null,null,null,null,null,null,null,null,null,null,null,null,"Watts Next","Human Resources",1,1]
[null,null,null,null,null,null,null,null,null,null,null,null,null,null,"Advisory Board Centre","Advisory Board & Strategy",1,1]
[null,"Ask the Expert - th ",null,null,null,null,null,null,null,null,null,null,null,null,"Impact Innovation Group ","Innovation Strategy & Change",1,1]
[null,null,null,null,null,null,null,null,null,null,null,null,null,null,"Prime Financial Group","Accounting & Taxation",1,1]
[null,"Executive Member","Guest","Table Number","Time","Industry Expert",null,"Executive Member","Guest","Table Number","Time","Industry Expert",null,null,"MAPIEN","IR & Org. Psychology",1,1]
[null,null,null,null,null,null,null,null,null,null,null,null,null,null,"Templetons Financial ","Wealth Management",1,1]
[null,null,null,null,null,null,null,null,null,null,null,null,null,null,"Aurora Marketing","Marketing, Tenders & Comms",1,1]
[null,null,null,null,null,null,null,null,null,null,null,null,null,null,"Optimum Recoveries","Credit Mgmt & Debt Recovery",1,1]
[null,null,null,null,null,null,null,null,null,null,null,null,null,null,"Fifth Eagle","Financial Strategy",1,1]
[null,null,null,null,null,null,null,null,null,null,null,null,null,null,"Clear Insurance ","Risk Management",1,1]
[null,null,null,null,null,null,null,null,null,null,null,null,null,null,"UPTI","Telecommunications",1,1]
[null,null,null,null,null,null,null,null,null,null,null,null,null,null,"Facilitated Discussion","Round Table",27,27]
[null,null,null,null,null,null,null,null,null,null,null,null,null,null,"Kitney OHS","Occupational Health & Safety",1,1]
[null,null,null,null,null,null,null,null,null,null,null,null,null,null,"Veracity","IT & Technology",1,1]
[null,null,null,null,null,null,null,null,null,null,null,null,null,null,"Heritage Finance","Debt Finance",1,1]
[null,null,null,null,null,null,null,null,null,null,null,null,null,null,"Agora","Digital Marketing",1,1]

{"sheet":"IME Session View","index":2,"n_rows":7,"n_cols":5,"rows_kept":7,"cut":false,"hidden":false,"merged":[[3,1,3,4]]}
[]
[]
[]
[null,"Ask the Expert - th "]
[]
[null,"Industry Expert","Time","Table Number","Executive Member"]
[null,"(blank)","(blank)","(blank)","(blank)"]

{"sheet":"Scheduler Admin","index":3,"n_rows":24,"n_cols":11,"rows_kept":24,"cut":false,"hidden":false,"merged":[]}
[]
[]
[]
[]
[]
[]
[]
[]
[]
[]
[]
[]
[]
[null,"Session Period","Session Date","Session Status","Round Table",null,"Session Number","Session Time",null,"Scheduler Configurations","Value"]
[null,"Feb '24","2023-02-09",{"$f":"IF(tblSessions[[#This Row],[Session Date]]<>\"\",IF(tblSessions[[#This Row],[Session Date]]>=NOW(),\"Active\",\"Inactive\"),\"\")","v":"Inactive"},"Facilitated Discussion",null,1,"15:30:00",null,"Scheduler Name","Ask the Expert"]
[null,"Mar '24","2023-03-09",{"$f":"IF(tblSessions[[#This Row],[Session Date]]<>\"\",IF(tblSessions[[#This Row],[Session Date]]>=NOW(),\"Active\",\"Inactive\"),\"\")","v":"Inactive"},"Facilitated Discussion",null,2,"16:00:00",null,"Round Table Label","Round Table"]
[null,"Apr '24","2023-04-13",{"$f":"IF(tblSessions[[#This Row],[Session Date]]<>\"\",IF(tblSessions[[#This Row],[Session Date]]>=NOW(),\"Active\",\"Inactive\"),\"\")","v":"Active"},"Facilitated Discussion",null,null,null,null,"Round Table Tag","FR"]
[null,"May '23","2023-05-11",{"$f":"IF(tblSessions[[#This Row],[Session Date]]<>\"\",IF(tblSessions[[#This Row],[Session Date]]>=NOW(),\"Active\",\"Inactive\"),\"\")","v":"Active"},"Facilitated Discussion"]
[null,"Jun '23","2023-06-08",{"$f":"IF(tblSessions[[#This Row],[Session Date]]<>\"\",IF(tblSessions[[#This Row],[Session Date]]>=NOW(),\"Active\",\"Inactive\"),\"\")","v":"Active"},"Facilitated Discussion"]
[null,"Jul '23","2023-07-13",{"$f":"IF(tblSessions[[#This Row],[Session Date]]<>\"\",IF(tblSessions[[#This Row],[Session Date]]>=NOW(),\"Active\",\"Inactive\"),\"\")","v":"Active"},"Facilitated Discussion"]
[null,"Aug '23","2023-08-10",{"$f":"IF(tblSessions[[#This Row],[Session Date]]<>\"\",IF(tblSessions[[#This Row],[Session Date]]>=NOW(),\"Active\",\"Inactive\"),\"\")","v":"Active"},"Facilitated Discussion"]
[null,"Sep '23","2023-09-14",{"$f":"IF(tblSessions[[#This Row],[Session Date]]<>\"\",IF(tblSessions[[#This Row],[Session Date]]>=NOW(),\"Active\",\"Inactive\"),\"\")","v":"Active"},"Facilitated Discussion"]
[null,"Oct '23","2023-10-12",{"$f":"IF(tblSessions[[#This Row],[Session Date]]<>\"\",IF(tblSessions[[#This Row],[Session Date]]>=NOW(),\"Active\",\"Inactive\"),\"\")","v":"Active"},"Facilitated Discussion"]
[null,"Nov '23","2023-11-09",{"$f":"IF(tblSessions[[#This Row],[Session Date]]<>\"\",IF(tblSessions[[#This Row],[Session Date]]>=NOW(),\"Active\",\"Inactive\"),\"\")","v":"Active"},"Facilitated Discussion"]

{"sheet":"Executive Members","index":4,"n_rows":29,"n_cols":11,"rows_kept":29,"cut":false,"hidden":false,"merged":[]}
[]
[]
[]
[]
[]
[]
[]
[]
[]
[]
[]
[]
[]
[null,"Executive Series Member","Main Contact","Start Date","Program Status","Total Session Periods","Total Sessions Planned","Total Sessions Scheduled","Total Sessions Pending","Total Round Tables","Notes"]
[null,"Insert Company Name","Insert Main Contact","2022-05-01",{"$f":"IF(tblESMList[[#This Row],[Start Date]]<>\"\",IF(tblESMList[[#This Row],[Start Date]]>NOW(), \"Not Commenced\", IF(AND(tblESMList[[#This Row],[Start Date]]<=NOW(), tblESMList[[#This Row],[Total Sessions Planned]]=0), \"No Sessions Planned\", IF(AND(tblESMList[[#This Row],[Start Date]]<=NOW(), tblESMList[[#This Row],[Total Sessions Planned]]=tblESMList[[#This Row],[Total Sessions Scheduled]]), \"Completed\", \"In Progress (\"&TEXT(tblESMList[[#This Row],[Total Sessions Scheduled]]/tblESMList[[#This Row],[Total Sessions Planned]], \"0%\")&\")\"))), \"\")","v":"In Progress (0%)"},10,{"$f":"tblESMList[[#This Row],[Total Session Periods]]*COUNTA(tblSessionTypes[Session Number])","v":20},{"$f":"COUNTIF('Schedule History'!C:C,tblESMList[[#This Row],[Executive Series Member]])","v":0},{"$f":"tblESMList[[#This Row],[Total Sessions Planned]]-tblESMList[[#This Row],[Total Sessions Scheduled]]","v":20},{"$f":"COUNTIFS('Schedule History'!C:C,tblESMList[[#This Row],[Executive Series Member]], 'Schedule History'!F:F, \"Round Table\")","v":0},"Use this column to remind you about "]
[null,null,null,null,{"$f":"IF(tblESMList[[#This Row],[Start Date]]<>\"\",IF(tblESMList[[#This Row],[Start Date]]>NOW(), \"Not Commenced\", IF(AND(tblESMList[[#This Row],[Start Date]]<=NOW(), tblESMList[[#This Row],[Total Sessions Planned]]=0), \"No Sessions Planned\", IF(AND(tblESMList[[#This Row],[Start Date]]<=NOW(), tblESMList[[#This Row],[Total Sessions Planned]]=tblESMList[[#This Row],[Total Sessions Scheduled]]), \"Completed\", \"In Progress (\"&TEXT(tblESMList[[#This Row],[Total Sessions Scheduled]]/tblESMList[[#This Row],[Total Sessions Planned]], \"0%\")&\")\"))), \"\")","v":""},10,{"$f":"tblESMList[[#This Row],[Total Session Periods]]*COUNTA(tblSessionTypes[Session Number])","v":20},{"$f":"COUNTIF('Schedule History'!C:C,tblESMList[[#This Row],[Executive Series Member]])","v":0},{"$f":"tblESMList[[#This Row],[Total Sessions Planned]]-tblESMList[[#This Row],[Total Sessions Scheduled]]","v":20},{"$f":"COUNTIFS('Schedule History'!C:C,tblESMList[[#This Row],[Executive Series Member]], 'Schedule History'!F:F, \"Round Table\")","v":0}]
[null,null,null,null,{"$f":"IF(tblESMList[[#This Row],[Start Date]]<>\"\",IF(tblESMList[[#This Row],[Start Date]]>NOW(), \"Not Commenced\", IF(AND(tblESMList[[#This Row],[Start Date]]<=NOW(), tblESMList[[#This Row],[Total Sessions Planned]]=0), \"No Sessions Planned\", IF(AND(tblESMList[[#This Row],[Start Date]]<=NOW(), tblESMList[[#This Row],[Total Sessions Planned]]=tblESMList[[#This Row],[Total Sessions Scheduled]]), \"Completed\", \"In Progress (\"&TEXT(tblESMList[[#This Row],[Total Sessions Scheduled]]/tblESMList[[#This Row],[Total Sessions Planned]], \"0%\")&\")\"))), \"\")","v":""},10,{"$f":"tblESMList[[#This Row],[Total Session Periods]]*COUNTA(tblSessionTypes[Session Number])","v":20},{"$f":"COUNTIF('Schedule History'!C:C,tblESMList[[#This Row],[Executive Series Member]])","v":0},{"$f":"tblESMList[[#This Row],[Total Sessions Planned]]-tblESMList[[#This Row],[Total Sessions Scheduled]]","v":20},{"$f":"COUNTIFS('Schedule History'!C:C,tblESMList[[#This Row],[Executive Series Member]], 'Schedule History'!F:F, \"Round Table\")","v":0},"Who Introduce the compan"]
[null,null,null,null,{"$f":"IF(tblESMList[[#This Row],[Start Date]]<>\"\",IF(tblESMList[[#This Row],[Start Date]]>NOW(), \"Not Commenced\", IF(AND(tblESMList[[#This Row],[Start Date]]<=NOW(), tblESMList[[#This Row],[Total Sessions Planned]]=0), \"No Sessions Planned\", IF(AND(tblESMList[[#This Row],[Start Date]]<=NOW(), tblESMList[[#This Row],[Total Sessions Planned]]=tblESMList[[#This Row],[Total Sessions Scheduled]]), \"Completed\", \"In Progress (\"&TEXT(tblESMList[[#This Row],[Total Sessions Scheduled]]/tblESMList[[#This Row],[Total Sessions Planned]], \"0%\")&\")\"))), \"\")","v":""},10,{"$f":"tblESMList[[#This Row],[Total Session Periods]]*COUNTA(tblSessionTypes[Session Number])","v":20},{"$f":"COUNTIF('Schedule History'!C:C,tblESMList[[#This Row],[Executive Series Member]])","v":0},{"$f":"tblESMList[[#This Row],[Total Sessions Planned]]-tblESMList[[#This Row],[Total Sessions Scheduled]]","v":20},{"$f":"COUNTIFS('Schedule History'!C:C,tblESMList[[#This Row],[Executive Series Member]], 'Schedule History'!F:F, \"Round Table\")","v":0},"If they shouldn't sit with a particular IE"]
[null,null,null,null,{"$f":"IF(tblESMList[[#This Row],[Start Date]]<>\"\",IF(tblESMList[[#This Row],[Start Date]]>NOW(), \"Not Commenced\", IF(AND(tblESMList[[#This Row],[Start Date]]<=NOW(), tblESMList[[#This Row],[Total Sessions Planned]]=0), \"No Sessions Planned\", IF(AND(tblESMList[[#This Row],[Start Date]]<=NOW(), tblESMList[[#This Row],[Total Sessions Planned]]=tblESMList[[#This Row],[Total Sessions Scheduled]]), \"Completed\", \"In Progress (\"&TEXT(tblESMList[[#This Row],[Total Sessions Scheduled]]/tblESMList[[#This Row],[Total Sessions Planned]], \"0%\")&\")\"))), \"\")","v":""},10,{"$f":"tblESMList[[#This Row],[Total Session Periods]]*COUNTA(tblSessionTypes[Session Number])","v":20},{"$f":"COUNTIF('Schedule History'!C:C,tblESMList[[#This Row],[Executive Series Member]])","v":0},{"$f":"tblESMList[[#This Row],[Total Sessions Planned]]-tblESMList[[#This Row],[Total Sessions Scheduled]]","v":20},{"$f":"COUNTIFS('Schedule History'!C:C,tblESMList[[#This Row],[Executive Series Member]], 'Schedule History'!F:F, \"Round Table\")","v":0},"They will be away for one month"]
[null,null,null,null,{"$f":"IF(tblESMList[[#This Row],[Start Date]]<>\"\",IF(tblESMList[[#This Row],[Start Date]]>NOW(), \"Not Commenced\", IF(AND(tblESMList[[#This Row],[Start Date]]<=NOW(), tblESMList[[#This Row],[Total Sessions Planned]]=0), \"No Sessions Planned\", IF(AND(tblESMList[[#This Row],[Start Date]]<=NOW(), tblESMList[[#This Row],[Total Sessions Planned]]=tblESMList[[#This Row],[Total Sessions Scheduled]]), \"Completed\", \"In Progress (\"&TEXT(tblESMList[[#This Row],[Total Sessions Scheduled]]/tblESMList[[#This Row],[Total Sessions Planned]], \"0%\")&\")\"))), \"\")","v":""},10,{"$f":"tblESMList[[#This Row],[Total Session Periods]]*COUNTA(tblSessionTypes[Session Number])","v":20},{"$f":"COUNTIF('Schedule History'!C:C,tblESMList[[#This Row],[Executive Series Member]])","v":0},{"$f":"tblESMList[[#This Row],[Total Sessions Planned]]-tblESMList[[#This Row],[Total Sessions Scheduled]]","v":20},{"$f":"COUNTIFS('Schedule History'!C:C,tblESMList[[#This Row],[Executive Series Member]], 'Schedule History'!F:F, \"Round Table\")","v":0}]
[null,null,null,null,{"$f":"IF(tblESMList[[#This Row],[Start Date]]<>\"\",IF(tblESMList[[#This Row],[Start Date]]>NOW(), \"Not Commenced\", IF(AND(tblESMList[[#This Row],[Start Date]]<=NOW(), tblESMList[[#This Row],[Total Sessions Planned]]=0), \"No Sessions Planned\", IF(AND(tblESMList[[#This Row],[Start Date]]<=NOW(), tblESMList[[#This Row],[Total Sessions Planned]]=tblESMList[[#This Row],[Total Sessions Scheduled]]), \"Completed\", \"In Progress (\"&TEXT(tblESMList[[#This Row],[Total Sessions Scheduled]]/tblESMList[[#This Row],[Total Sessions Planned]], \"0%\")&\")\"))), \"\")","v":""},10,{"$f":"tblESMList[[#This Row],[Total Session Periods]]*COUNTA(tblSessionTypes[Session Number])","v":20},{"$f":"COUNTIF('Schedule History'!C:C,tblESMList[[#This Row],[Executive Series Member]])","v":0},{"$f":"tblESMList[[#This Row],[Total Sessions Planned]]-tblESMList[[#This Row],[Total Sessions Scheduled]]","v":20},{"$f":"COUNTIFS('Schedule History'!C:C,tblESMList[[#This Row],[Executive Series Member]], 'Schedule History'!F:F, \"Round Table\")","v":0}]
[null,null,null,null,{"$f":"IF(tblESMList[[#This Row],[Start Date]]<>\"\",IF(tblESMList[[#This Row],[Start Date]]>NOW(), \"Not Commenced\", IF(AND(tblESMList[[#This Row],[Start Date]]<=NOW(), tblESMList[[#This Row],[Total Sessions Planned]]=0), \"No Sessions Planned\", IF(AND(tblESMList[[#This Row],[Start Date]]<=NOW(), tblESMList[[#This Row],[Total Sessions Planned]]=tblESMList[[#This Row],[Total Sessions Scheduled]]), \"Completed\", \"In Progress (\"&TEXT(tblESMList[[#This Row],[Total Sessions Scheduled]]/tblESMList[[#This Row],[Total Sessions Planned]], \"0%\")&\")\"))), \"\")","v":""},10,{"$f":"tblESMList[[#This Row],[Total Session Periods]]*COUNTA(tblSessionTypes[Session Number])","v":20},{"$f":"COUNTIF('Schedule History'!C:C,tblESMList[[#This Row],[Executive Series Member]])","v":0},{"$f":"tblESMList[[#This Row],[Total Sessions Planned]]-tblESMList[[#This Row],[Total Sessions Scheduled]]","v":20},{"$f":"COUNTIFS('Schedule History'!C:C,tblESMList[[#This Row],[Executive Series Member]], 'Schedule History'!F:F, \"Round Table\")","v":0},"Information in this column will not "]
[null,null,null,null,{"$f":"IF(tblESMList[[#This Row],[Start Date]]<>\"\",IF(tblESMList[[#This Row],[Start Date]]>NOW(), \"Not Commenced\", IF(AND(tblESMList[[#This Row],[Start Date]]<=NOW(), tblESMList[[#This Row],[Total Sessions Planned]]=0), \"No Sessions Planned\", IF(AND(tblESMList[[#This Row],[Start Date]]<=NOW(), tblESMList[[#This Row],[Total Sessions Planned]]=tblESMList[[#This Row],[Total Sessions Scheduled]]), \"Completed\", \"In Progress (\"&TEXT(tblESMList[[#This Row],[Total Sessions Scheduled]]/tblESMList[[#This Row],[Total Sessions Planned]], \"0%\")&\")\"))), \"\")","v":""},10,{"$f":"tblESMList[[#This Row],[Total Session Periods]]*COUNTA(tblSessionTypes[Session Number])","v":20},{"$f":"COUNTIF('Schedule History'!C:C,tblESMList[[#This Row],[Executive Series Member]])","v":0},{"$f":"tblESMList[[#This Row],[Total Sessions Planned]]-tblESMList[[#This Row],[Total Sessions Scheduled]]","v":20},{"$f":"COUNTIFS('Schedule History'!C:C,tblESMList[[#This Row],[Executive Series Member]], 'Schedule History'!F:F, \"Round Table\")","v":0},"influence any other sheet"]
[null,null,null,null,{"$f":"IF(tblESMList[[#This Row],[Start Date]]<>\"\",IF(tblESMList[[#This Row],[Start Date]]>NOW(), \"Not Commenced\", IF(AND(tblESMList[[#This Row],[Start Date]]<=NOW(), tblESMList[[#This Row],[Total Sessions Planned]]=0), \"No Sessions Planned\", IF(AND(tblESMList[[#This Row],[Start Date]]<=NOW(), tblESMList[[#This Row],[Total Sessions Planned]]=tblESMList[[#This Row],[Total Sessions Scheduled]]), \"Completed\", \"In Progress (\"&TEXT(tblESMList[[#This Row],[Total Sessions Scheduled]]/tblESMList[[#This Row],[Total Sessions Planned]], \"0%\")&\")\"))), \"\")","v":""},10,{"$f":"tblESMList[[#This Row],[Total Session Periods]]*COUNTA(tblSessionTypes[Session Number])","v":20},{"$f":"COUNTIF('Schedule History'!C:C,tblESMList[[#This Row],[Executive Series Member]])","v":0},{"$f":"tblESMList[[#This Row],[Total Sessions Planned]]-tblESMList[[#This Row],[Total Sessions Scheduled]]","v":20},{"$f":"COUNTIFS('Schedule History'!C:C,tblESMList[[#This Row],[Executive Series Member]], 'Schedule History'!F:F, \"Round Table\")","v":0},"you must manually update "]
[null,null,null,null,{"$f":"IF(tblESMList[[#This Row],[Start Date]]<>\"\",IF(tblESMList[[#This Row],[Start Date]]>NOW(), \"Not Commenced\", IF(AND(tblESMList[[#This Row],[Start Date]]<=NOW(), tblESMList[[#This Row],[Total Sessions Planned]]=0), \"No Sessions Planned\", IF(AND(tblESMList[[#This Row],[Start Date]]<=NOW(), tblESMList[[#This Row],[Total Sessions Planned]]=tblESMList[[#This Row],[Total Sessions Scheduled]]), \"Completed\", \"In Progress (\"&TEXT(tblESMList[[#This Row],[Total Sessions Scheduled]]/tblESMList[[#This Row],[Total Sessions Planned]], \"0%\")&\")\"))), \"\")","v":""},10,{"$f":"tblESMList[[#This Row],[Total Session Periods]]*COUNTA(tblSessionTypes[Session Number])","v":20},{"$f":"COUNTIF('Schedule History'!C:C,tblESMList[[#This Row],[Executive Series Member]])","v":0},{"$f":"tblESMList[[#This Row],[Total Sessions Planned]]-tblESMList[[#This Row],[Total Sessions Scheduled]]","v":20},{"$f":"COUNTIFS('Schedule History'!C:C,tblESMList[[#This Row],[Executive Series Member]], 'Schedule History'!F:F, \"Round Table\")","v":0},"Schedule Summary if necessary"]
[null,null,null,null,{"$f":"IF(tblESMList[[#This Row],[Start Date]]<>\"\",IF(tblESMList[[#This Row],[Start Date]]>NOW(), \"Not Commenced\", IF(AND(tblESMList[[#This Row],[Start Date]]<=NOW(), tblESMList[[#This Row],[Total Sessions Planned]]=0), \"No Sessions Planned\", IF(AND(tblESMList[[#This Row],[Start Date]]<=NOW(), tblESMList[[#This Row],[Total Sessions Planned]]=tblESMList[[#This Row],[Total Sessions Scheduled]]), \"Completed\", \"In Progress (\"&TEXT(tblESMList[[#This Row],[Total Sessions Scheduled]]/tblESMList[[#This Row],[Total Sessions Planned]], \"0%\")&\")\"))), \"\")","v":""},10,{"$f":"tblESMList[[#This Row],[Total Session Periods]]*COUNTA(tblSessionTypes[Session Number])","v":20},{"$f":"COUNTIF('Schedule History'!C:C,tblESMList[[#This Row],[Executive Series Member]])","v":0},{"$f":"tblESMList[[#This Row],[Total Sessions Planned]]-tblESMList[[#This Row],[Total Sessions Scheduled]]","v":20},{"$f":"COUNTIFS('Schedule History'!C:C,tblESMList[[#This Row],[Executive Series Member]], 'Schedule History'!F:F, \"Round Table\")","v":0}]
[null,null,null,null,{"$f":"IF(tblESMList[[#This Row],[Start Date]]<>\"\",IF(tblESMList[[#This Row],[Start Date]]>NOW(), \"Not Commenced\", IF(AND(tblESMList[[#This Row],[Start Date]]<=NOW(), tblESMList[[#This Row],[Total Sessions Planned]]=0), \"No Sessions Planned\", IF(AND(tblESMList[[#This Row],[Start Date]]<=NOW(), tblESMList[[#This Row],[Total Sessions Planned]]=tblESMList[[#This Row],[Total Sessions Scheduled]]), \"Completed\", \"In Progress (\"&TEXT(tblESMList[[#This Row],[Total Sessions Scheduled]]/tblESMList[[#This Row],[Total Sessions Planned]], \"0%\")&\")\"))), \"\")","v":""},10,{"$f":"tblESMList[[#This Row],[Total Session Periods]]*COUNTA(tblSessionTypes[Session Number])","v":20},{"$f":"COUNTIF('Schedule History'!C:C,tblESMList[[#This Row],[Executive Series Member]])","v":0},{"$f":"tblESMList[[#This Row],[Total Sessions Planned]]-tblESMList[[#This Row],[Total Sessions Scheduled]]","v":20},{"$f":"COUNTIFS('Schedule History'!C:C,tblESMList[[#This Row],[Executive Series Member]], 'Schedule History'!F:F, \"Round Table\")","v":0}]
[null,null,null,null,{"$f":"IF(tblESMList[[#This Row],[Start Date]]<>\"\",IF(tblESMList[[#This Row],[Start Date]]>NOW(), \"Not Commenced\", IF(AND(tblESMList[[#This Row],[Start Date]]<=NOW(), tblESMList[[#This Row],[Total Sessions Planned]]=0), \"No Sessions Planned\", IF(AND(tblESMList[[#This Row],[Start Date]]<=NOW(), tblESMList[[#This Row],[Total Sessions Planned]]=tblESMList[[#This Row],[Total Sessions Scheduled]]), \"Completed\", \"In Progress (\"&TEXT(tblESMList[[#This Row],[Total Sessions Scheduled]]/tblESMList[[#This Row],[Total Sessions Planned]], \"0%\")&\")\"))), \"\")","v":""},10,{"$f":"tblESMList[[#This Row],[Total Session Periods]]*COUNTA(tblSessionTypes[Session Number])","v":20},{"$f":"COUNTIF('Schedule History'!C:C,tblESMList[[#This Row],[Executive Series Member]])","v":0},{"$f":"tblESMList[[#This Row],[Total Sessions Planned]]-tblESMList[[#This Row],[Total Sessions Scheduled]]","v":20},{"$f":"COUNTIFS('Schedule History'!C:C,tblESMList[[#This Row],[Executive Series Member]], 'Schedule History'!F:F, \"Round Table\")","v":0}]
[null,null,null,null,{"$f":"IF(tblESMList[[#This Row],[Start Date]]<>\"\",IF(tblESMList[[#This Row],[Start Date]]>NOW(), \"Not Commenced\", IF(AND(tblESMList[[#This Row],[Start Date]]<=NOW(), tblESMList[[#This Row],[Total Sessions Planned]]=0), \"No Sessions Planned\", IF(AND(tblESMList[[#This Row],[Start Date]]<=NOW(), tblESMList[[#This Row],[Total Sessions Planned]]=tblESMList[[#This Row],[Total Sessions Scheduled]]), \"Completed\", \"In Progress (\"&TEXT(tblESMList[[#This Row],[Total Sessions Scheduled]]/tblESMList[[#This Row],[Total Sessions Planned]], \"0%\")&\")\"))), \"\")","v":""},10,{"$f":"tblESMList[[#This Row],[Total Session Periods]]*COUNTA(tblSessionTypes[Session Number])","v":20},{"$f":"COUNTIF('Schedule History'!C:C,tblESMList[[#This Row],[Executive Series Member]])","v":0},{"$f":"tblESMList[[#This Row],[Total Sessions Planned]]-tblESMList[[#This Row],[Total Sessions Scheduled]]","v":20},{"$f":"COUNTIFS('Schedule History'!C:C,tblESMList[[#This Row],[Executive Series Member]], 'Schedule History'!F:F, \"Round Table\")","v":0}]

{"sheet":"Industry Experts","index":5,"n_rows":34,"n_cols":6,"rows_kept":34,"cut":false,"hidden":false,"merged":[]}
[]
[]
[]
[]
[]
[]
[]
[]
[]
[]
[]
[]
[null,"Industry Mentoring Expert","Industry Type","Industry Mentoring Expert Label","Default ESM Priority","Include in Auto Scheduling"]
[null,null,"Legal & Intellectual Property",{"$f":"tblIMEList[[#This Row],[Industry Type]]&\" - \"&tblIMEList[[#This Row],[Industry Mentoring Expert]]","v":"Legal & Intellectual Property - "},1,"Y"]
[null,null,"IR & Org. Psychology",{"$f":"tblIMEList[[#This Row],[Industry Type]]&\" - \"&tblIMEList[[#This Row],[Industry Mentoring Expert]]","v":"IR & Org. Psychology - "},2,"Y"]
[null,null,"Accounting & Taxation",{"$f":"tblIMEList[[#This Row],[Industry Type]]&\" - \"&tblIMEList[[#This Row],[Industry Mentoring Expert]]","v":"Accounting & Taxation - "},3,"Y"]
[null,null,"Sales Strategy",{"$f":"tblIMEList[[#This Row],[Industry Type]]&\" - \"&tblIMEList[[#This Row],[Industry Mentoring Expert]]","v":"Sales Strategy - "},4,"Y"]
[null,null,"Wealth Management",{"$f":"tblIMEList[[#This Row],[Industry Type]]&\" - \"&tblIMEList[[#This Row],[Industry Mentoring Expert]]","v":"Wealth Management - "},5,"Y"]
[null,null,"Innovation Strategy & Change",{"$f":"tblIMEList[[#This Row],[Industry Type]]&\" - \"&tblIMEList[[#This Row],[Industry Mentoring Expert]]","v":"Innovation Strategy & Change - "},6,"Y"]
[null,null,"Risk Management",{"$f":"tblIMEList[[#This Row],[Industry Type]]&\" - \"&tblIMEList[[#This Row],[Industry Mentoring Expert]]","v":"Risk Management - "},7,"Y"]
[null,null,"Brand Strategy",{"$f":"tblIMEList[[#This Row],[Industry Type]]&\" - \"&tblIMEList[[#This Row],[Industry Mentoring Expert]]","v":"Brand Strategy - "},8,"Y"]
[null,null,"Digital Marketing",{"$f":"tblIMEList[[#This Row],[Industry Type]]&\" - \"&tblIMEList[[#This Row],[Industry Mentoring Expert]]","v":"Digital Marketing - "},9,"Y"]
[null,null,"Leadership & Education",{"$f":"tblIMEList[[#This Row],[Industry Type]]&\" - \"&tblIMEList[[#This Row],[Industry Mentoring Expert]]","v":"Leadership & Education - "},10,"Y"]
[null,null,"Human Resources",{"$f":"tblIMEList[[#This Row],[Industry Type]]&\" - \"&tblIMEList[[#This Row],[Industry Mentoring Expert]]","v":"Human Resources - "},11,"Y"]
[null,null,"IT & Technology",{"$f":"tblIMEList[[#This Row],[Industry Type]]&\" - \"&tblIMEList[[#This Row],[Industry Mentoring Expert]]","v":"IT & Technology - "},12,"Y"]
[null,null,"Telecommunications",{"$f":"tblIMEList[[#This Row],[Industry Type]]&\" - \"&tblIMEList[[#This Row],[Industry Mentoring Expert]]","v":"Telecommunications - "},13,"Y"]
[null,null,"Advisory Board & Strategy",{"$f":"tblIMEList[[#This Row],[Industry Type]]&\" - \"&tblIMEList[[#This Row],[Industry Mentoring Expert]]","v":"Advisory Board & Strategy - "},14,"Y"]
[null,null,"Marketing, Tenders & Comms",{"$f":"tblIMEList[[#This Row],[Industry Type]]&\" - \"&tblIMEList[[#This Row],[Industry Mentoring Expert]]","v":"Marketing, Tenders & Comms - "},15,"Y"]
[null,null,"Occupational Health & Safety",{"$f":"tblIMEList[[#This Row],[Industry Type]]&\" - \"&tblIMEList[[#This Row],[Industry Mentoring Expert]]","v":"Occupational Health & Safety - "},16,"Y"]
[null,null,"Merger, Acquisition & Exit",{"$f":"tblIMEList[[#This Row],[Industry Type]]&\" - \"&tblIMEList[[#This Row],[Industry Mentoring Expert]]","v":"Merger, Acquisition & Exit - "},17,"Y"]
[null,null,"Credit Mgmt & Debt Recovery",{"$f":"tblIMEList[[#This Row],[Industry Type]]&\" - \"&tblIMEList[[#This Row],[Industry Mentoring Expert]]","v":"Credit Mgmt & Debt Recovery - "},18,"Y"]
[null,null,"Financial Strategy",{"$f":"tblIMEList[[#This Row],[Industry Type]]&\" - \"&tblIMEList[[#This Row],[Industry Mentoring Expert]]","v":"Financial Strategy - "},19,"Y"]
[null,null,"Debt Finance",{"$f":"tblIMEList[[#This Row],[Industry Type]]&\" - \"&tblIMEList[[#This Row],[Industry Mentoring Expert]]","v":"Debt Finance - "},20,"Y"]
[null,null,"Public & Capital Markets",{"$f":"tblIMEList[[#This Row],[Industry Type]]&\" - \"&tblIMEList[[#This Row],[Industry Mentoring Expert]]","v":"Public & Capital Markets - "},21,"N"]

{"sheet":"Scheduling Matrix","index":6,"n_rows":14,"n_cols":2,"rows_kept":14,"cut":false,"hidden":false,"merged":[]}
[]
[]
[]
[]
[]
[]
[]
[]
[]
[]
[]
[]
[]
["Heading Label Length this long","Industry Type/Executive Series Member"]

{"sheet":"Schedule History","index":7,"n_rows":1,"n_cols":8,"rows_kept":1,"cut":false,"hidden":false,"merged":[]}
["Session","Session Number","ESM","IME","IME Type","Schedule Type","Session Date","Session Time"]

{"sheet":"IMESessionViewData","index":8,"n_rows":1,"n_cols":4,"rows_kept":1,"cut":false,"hidden":true,"merged":[]}
["Industry Expert","Time","Table Number","Executive Member"]

{"sheet":"SessionViewData","index":9,"n_rows":0,"n_cols":0,"rows_kept":0,"cut":false,"hidden":true,"merged":[]}

{"sheet":"ActiveSessions","index":10,"n_rows":1,"n_cols":1,"rows_kept":1,"cut":false,"hidden":true,"merged":[]}
["Apr '23"]

{"sheet":"IMESelectData","index":11,"n_rows":48,"n_cols":3,"rows_kept":48,"cut":false,"hidden":true,"merged":[]}
["Nov '21",1,"Debt Finance - Heritage Finance"]
["Nov '21",2,"Marketing, Tenders & Comms - Aurora Marketing"]
["Feb '22",1,"IR & Org. Psychology - MAPIEN"]
["Feb '22",2,"Digital Marketing - Agora"]
["Mar '22",1,"Brand Strategy - Dais"]
["Mar '22",2,"Leadership & Education - QUT"]
["Apr '22",1,"Occupational Health & Safety - Kitney OHS"]
["Apr '22",2,"Wealth Management - Templetons Financial "]
["May '22",1,"IT & Technology - Veracity"]
["May '22",2,"Advisory Board & Strategy - Advisory Board Centre"]
["Jun '22",1,"Round Table - Round Table"]
["Jun '22",2,"Round Table - Round Table"]
["Jul '22",1,"Legal & Intellectual Property - Mullins Lawyers"]
["Jul '22",2,"Financial Strategy - Fifth Eagle"]
["Aug '22",1,"Unattended - sbb partners"]
["Aug '22",2,"Unattended - sbb partners"]
["Sep '22",1,"Round Table - Round Table"]
["Sep '22",2,"Round Table - Round Table"]
["Oct '22",1,"Round Table - Round Table"]
["Oct '22",2,"Round Table - Round Table"]
["Nov '22",2,"Sales Strategy - Salesmasters International"]
["Nov '22",2,"Innovation Strategy & Change - Impact Innovation Group "]
["Nov '22",2,"Merger, Acquisition & Exit - InterFinancial"]
["Nov '22",2,"Accounting & Taxation - Prime Financial Group"]
["Nov '22",2,"IR & Org. Psychology - MAPIEN"]
["Nov '22",2,"Occupational Health & Safety - Kitney OHS"]
["Nov '22",2,"Human Resources - Watts Next"]
["Nov '22",2,"Telecommunications - UPTI"]
["Nov '22",2,"Round Table - Round Table"]
["Nov '22",2,"IT & Technology - Veracity"]
["Nov '22",2,"Round Table - Round Table"]
["Nov '22",2,"Round Table - Round Table"]
["Nov '22",2,"Round Table - Round Table"]
["Nov '22",2,"Round Table - Round Table"]
["Nov '22",2,"Risk Management - Clear Insurance "]
["Nov '22",2,"Debt Finance - Heritage Finance"]
["Nov '22",2,"Digital Marketing - Agora"]
["Nov '22",2,"Round Table - Round Table"]
["Nov '22",2,"Wealth Management - Templetons Financial "]
["Nov '22",2,"Brand Strategy - Dais"]
["Nov '22",2,"Credit Mgmt & Debt Recovery - Optimum Recoveries"]
["Nov '22",2,"Leadership & Education - QUT"]
["Nov '22",1,"Unattended - sbb partners"]
["Nov '22",2,"Round Table - Round Table"]
["Nov '22",2,"Legal & Intellectual Property - Mullins Lawyers"]
["Nov '22",2,"Marketing, Tenders & Comms - Aurora Marketing"]
["Nov '22",2,"Financial Strategy - Fifth Eagle"]
["Nov '22",2,"Advisory Board & Strategy - Advisory Board Centre"]

{"sheet":"ESMScheduleIME","index":12,"n_rows":20,"n_cols":3,"rows_kept":20,"cut":false,"hidden":true,"merged":[]}
["Legal & Intellectual Property","Legal & Intellectual Property - Mullins Lawyers",1]
["IR & Org. Psychology","IR & Org. Psychology - MAPIEN",2]
["Accounting & Taxation","Accounting & Taxation - Prime Financial Group",3]
["Sales Strategy","Sales Strategy - Salesmasters International",4]
["Wealth Management","Wealth Management - Templetons Financial ",5]
["Innovation Strategy & Change","Innovation Strategy & Change - Impact Innovation Group ",6]
["Risk Management","Risk Management - Clear Insurance ",7]
["Brand Strategy","Brand Strategy - Dais",8]
["Digital Marketing","Digital Marketing - Agora",9]
["Leadership & Education","Leadership & Education - QUT",10]
["Human Resources","Human Resources - Watts Next",11]
["IT & Technology","IT & Technology - Veracity",12]
["Telecommunications","Telecommunications - UPTI",13]
["Advisory Board & Strategy","Advisory Board & Strategy - Advisory Board Centre",14]
["Marketing, Tenders & Comms","Marketing, Tenders & Comms - Aurora Marketing",15]
["Occupational Health & Safety","Occupational Health & Safety - Kitney OHS",16]
["Merger, Acquisition & Exit","Merger, Acquisition & Exit - InterFinancial",17]
["Credit Mgmt & Debt Recovery","Credit Mgmt & Debt Recovery - Optimum Recoveries",18]
["Financial Strategy","Financial Strategy - Fifth Eagle",19]
["Debt Finance","Debt Finance - Heritage Finance",20]

{"sheet":"SessionView Data","index":13,"n_rows":0,"n_cols":0,"rows_kept":0,"cut":false,"hidden":true,"merged":[]}